bitfinex/quotes_BTCUSD_20241222
["timestamp","ask_amount","ask_price","bid_price","bid_amount"]
[1734840784575,0.3879364,97027.0,97026.0,0.0001714]
[1734840785968,0.3889364,97027.0,97026.0,0.0001714]
[1734840797508,0.1828084,97027.0,97026.0,0.0001714]
[1734840798752,0.002,97027.0,97026.0,0.0001714]
[1734840799815,0.001,97027.0,97026.0,0.0001714]
[1734840800028,0.09220564,97032.0,97026.0,0.0001714]
[1734840800231,0.001,97027.0,97026.0,0.0001714]
[1734840800437,0.002,97027.0,97026.0,0.0001714]
[1734840800646,0.09220564,97033.0,97026.0,0.0001714]
[1734840801287,0.29832164,97033.0,97026.0,0.0001714]
[1734840801489,0.29832164,97033.0,97026.0,0.0011714]
[1734840801769,0.09220564,97032.0,97026.0,0.0011714]
[1734840801964,0.09220564,97032.0,97026.0,0.0001714]
[1734840802958,0.09420564,97032.0,97026.0,0.0001714]
[1734840803759,0.09220564,97031.0,97026.0,0.0001714]
[1734840805087,0.09520564,97031.0,97026.0,0.0001714]
[1734840805896,0.09520564,97031.0,97027.0,0.206128]
[1734840806246,0.09720564,97031.0,97027.0,0.287828]
[1734840806585,0.09520564,97031.0,97027.0,0.287828]
[1734840806787,0.09220564,97031.0,97027.0,0.493956]
[1734840807134,0.09420564,97031.0,97027.0,0.493956]
[1734840807353,0.09620564,97031.0,97027.0,0.493956]
[1734840808107,0.002,97031.0,97027.0,0.493956]
[1734840808313,0.09220564,97038.0,97034.0,0.206113]
[1734840809265,0.09220564,97038.0,97031.0,0.206117]
[1734840809500,0.002,97038.0,97031.0,0.206117]
[1734840810083,8.57e-05,97039.0,97031.0,0.206117]
[1734840810727,0.001,97038.0,97031.0,0.206117]
[1734840810933,8.57e-05,97039.0,97031.0,0.206117]
[1734840811557,0.002,97038.0,97031.0,0.206117]
[1734840812001,0.002,97038.0,97026.0,0.0001714]
[1734840812210,0.412222,97035.0,97021.0,0.00011456]
[1734840812425,0.1013084,97035.0,97021.0,0.00011456]
[1734840812634,0.206113,97034.0,97021.0,0.00011456]
[1734840813038,0.206117,97032.0,97021.0,0.00011456]
[1734840813163,0.3074254,97032.0,97021.0,0.00011456]
[1734840813967,0.3074254,97032.0,97021.0,0.00111456]
[1734840814358,0.3074254,97032.0,97021.0,0.00011456]
[1734840814761,0.09220564,97030.0,97021.0,0.00211456]
[1734840816060,0.09220564,97030.0,97021.0,0.00011456]
[1734840817107,0.09320564,97030.0,97021.0,0.00011456]
[1734840817323,0.09220564,97030.0,97021.0,0.00011456]
[1734840817465,0.09520564,97030.0,97021.0,0.00011456]
[1734840818096,0.09620564,97030.0,97021.0,0.00011456]
[1734840819110,0.09520564,97030.0,97021.0,0.00011456]
[1734840819311,0.09420564,97030.0,97021.0,0.00011456]
[1734840819552,0.09720564,97030.0,97021.0,0.00011456]
[1734840819963,0.09420564,97030.0,97021.0,0.00011456]
[1734840820160,0.09620564,97030.0,97021.0,0.00011456]
[1734840821185,0.09820564,97030.0,97021.0,0.00011456]
[1734840824429,0.006,97030.0,97021.0,0.00011456]
[1734840827089,0.09420564,97030.0,97021.0,0.00011456]
[1734840827321,0.09220564,97030.0,97021.0,0.00011456]
[1734840827527,0.09420564,97030.0,97021.0,0.00011456]
[1734840827726,0.09220564,97030.0,97021.0,0.00011456]
[1734840827930,0.09520564,97030.0,97021.0,0.00011456]
[1734840828372,0.09320564,97030.0,97021.0,0.00011456]
[1734840828777,0.09320564,97030.0,97021.0,0.20625456]
[1734840829135,0.09329134,97030.0,97021.0,0.20625456]
[1734840829694,0.09529134,97030.0,97021.0,0.20625456]
[1734840830144,0.0030857,97030.0,97021.0,0.20625456]
[1734840839059,0.0030857,97030.0,97021.0,0.00011456]
[1734840839279,0.206123,97029.0,97021.0,0.00011456]
[1734840839492,0.206134,97025.0,97021.0,0.00011456]
[1734840839714,0.206136,97023.0,97021.0,0.00011456]
[1734840839929,0.1013084,97022.0,97021.0,0.00011456]
[1734840840774,0.1013084,97022.0,97021.0,0.00111456]
[1734840841002,0.44236257,97022.0,97021.0,0.00111456]
[1734840841201,0.44236257,97022.0,97021.0,0.00011456]
[1734840841438,0.44236257,97022.0,97021.0,0.00211456]
[1734840842800,0.44236257,97022.0,97021.0,0.00011456]
[1734840843788,0.44536257,97022.0,97021.0,0.00011456]
[1734840844029,0.24287758,97022.0,97021.0,0.00011456]
[1734840844239,0.24187758,97022.0,97021.0,0.00011456]
[1734840844721,0.24387758,97022.0,97021.0,0.00011456]
[1734840846753,0.1053084,97022.0,97021.0,0.00011456]
[1734840846938,0.1013084,97022.0,97021.0,0.00011456]
[1734840847361,0.1033084,97022.0,97021.0,0.00011456]
[1734840847810,0.004,97022.0,97021.0,0.00011456]
[1734840848231,0.002,97022.0,97021.0,0.00011456]
[1734840848708,0.0843,97022.0,97021.0,0.00011456]
[1734840848919,0.2308084,97022.0,97021.0,0.00011456]
[1734840849748,0.2288084,97022.0,97021.0,0.00011456]
[1734840850002,0.3308084,97022.0,97021.0,0.00011456]
[1734840850403,0.3288084,97022.0,97021.0,0.00011456]
[1734840850921,0.67358814,97022.0,97021.0,0.00011456]
[1734840851103,0.67158814,97022.0,97021.0,0.00011456]
[1734840851232,0.67980485,97022.0,97021.0,0.00011456]
[1734840851429,0.68080485,97022.0,97021.0,0.00011456]
[1734840851634,0.58080485,97022.0,97021.0,0.00011456]
[1734840852354,0.58180485,97022.0,97021.0,0.00011456]
[1734840852552,0.58080485,97022.0,97021.0,0.00011456]
[1734840853004,0.58280485,97022.0,97021.0,0.00011456]
[1734840853208,0.58080485,97022.0,97021.0,0.00011456]
[1734840853461,0.58580485,97022.0,97021.0,0.00011456]
[1734840853686,0.58780485,97022.0,97021.0,0.00011456]
[1734840853885,0.58180485,97022.0,97021.0,0.00011456]
[1734840854099,0.57980485,97022.0,97021.0,0.00011456]
[1734840854373,0.58380485,97022.0,97021.0,0.00011456]
[1734840854596,0.58980485,97022.0,97021.0,0.00011456]
[1734840854873,0.58580485,97022.0,97021.0,0.00011456]
[1734840855227,0.58880485,97022.0,97021.0,0.00011456]
[1734840855859,0.58280485,97022.0,97021.0,0.00011456]
[1734840856063,0.58880485,97022.0,97021.0,0.00011456]
[1734840856264,0.57858814,97022.0,97021.0,0.00011456]
[1734840856435,0.57558814,97022.0,97021.0,0.00011456]
[1734840856839,0.57958814,97022.0,97021.0,0.00011456]
[1734840857257,0.57558814,97022.0,97021.0,0.00011456]
[1734840857465,0.57858814,97022.0,97021.0,0.00011456]
[1734840860088,0.53338814,97022.0,97021.0,0.00011456]
[1734840861506,0.71793763,97022.0,97021.0,0.00011456]
[1734840862695,0.33102167,97022.0,97021.0,0.00011456]
[1734840864434,0.1926084,97022.0,97021.0,0.00011456]
[1734840868388,0.28491657,97022.0,97021.0,0.00011456]
[1734840869668,0.1926084,97022.0,97021.0,0.00011456]
[1734840872480,0.33102167,97022.0,97021.0,0.00011456]
[1734840873739,0.1926084,97022.0,97021.0,0.00011456]
[1734840879511,0.71807215,97022.0,97021.0,0.00011456]
[1734840880011,0.76777215,97022.0,97021.0,0.00011456]
[1734840880557,0.91777215,97022.0,97021.0,0.00011456]
[1734840880764,0.96397597,97022.0,97021.0,0.00011456]
[1734840881952,0.73322266,97022.0,97021.0,0.00011456]
[1734840882162,0.83322266,97022.0,97021.0,0.00011456]
[1734840882886,0.85622266,97022.0,97021.0,0.00011456]
[1734840884433,0.85322266,97022.0,97021.0,0.00011456]
[1734840884640,0.95822266,97022.0,97021.0,0.00011456]
[1734840884816,0.96546879,97022.0,97021.0,5.6e-07]
[1734840885025,0.206174,97005.0,97004.0,0.0001712]
[1734840885243,0.5338824,97005.0,97004.0,0.00022565]
[1734840886207,0.5358824,97005.0,97004.0,0.00022565]
[1734840886812,0.7879824,97005.0,97004.0,0.00022565]
[1734840887052,0.8109824,97005.0,97004.0,0.00022565]
[1734840887469,1.15189666,97005.0,97004.0,0.00022565]
[1734840887684,1.14989666,97005.0,97004.0,0.00022565]
[1734840887835,1.15389666,97005.0,97004.0,0.00022565]
[1734840888043,1.14789666,97005.0,97004.0,0.00022565]
[1734840888464,1.14389666,97005.0,97004.0,0.00022565]
[1734840888678,1.15586987,97005.0,97004.0,0.00022565]
[1734840889087,1.16642099,97005.0,97004.0,0.00022565]
[1734840889455,1.17442099,97005.0,97004.0,0.00022565]
[1734840890703,1.16744778,97005.0,97004.0,0.00022565]
[1734840895239,1.14444778,97005.0,97004.0,0.00022565]
[1734840895815,1.42071286,97005.0,97004.0,0.00022565]
[1734840896021,1.32071286,97005.0,97004.0,0.00022565]
[1734840897151,1.04444778,97005.0,97004.0,0.00022565]
[1734840898114,0.89834778,97005.0,97004.0,0.00022565]
[1734840898531,0.99834778,97005.0,97004.0,0.00022565]
[1734840898939,0.89834778,97005.0,97004.0,0.00022565]
[1734840899568,0.82194778,97005.0,97004.0,0.00022565]
[1734840899850,0.67194778,97005.0,97004.0,0.00022565]
[1734840900723,0.65894778,97005.0,97004.0,0.00022565]
[1734840900926,0.66394778,97005.0,97004.0,0.00022565]
[1734840901333,0.48103352,97005.0,97004.0,0.00022565]
[1734840901492,0.4654824,97005.0,97004.0,0.00022565]
[1734840901694,0.4694824,97005.0,97004.0,0.00022565]
[1734840902258,0.4654824,97005.0,97004.0,0.00022565]
[1734840902699,0.4574824,97005.0,97004.0,0.00022565]
[1734840902895,0.4654824,97005.0,97004.0,0.00022565]
[1734840903136,0.4574824,97005.0,97004.0,0.00022565]
[1734840903507,0.4654824,97005.0,97004.0,0.00022565]
[1734840903738,0.4624824,97005.0,97004.0,0.00022565]
[1734840904041,0.4654824,97005.0,97004.0,0.00022565]
[1734840904396,0.4624824,97005.0,97004.0,0.00022565]
[1734840904742,0.4704824,97005.0,97004.0,0.00022565]
[1734840905741,0.4624824,97005.0,97004.0,0.00022565]
[1734840906100,0.4704824,97005.0,97004.0,0.00022565]
[1734840910188,0.5495824,97005.0,97004.0,0.00022565]
[1734840912825,0.8896394,97005.0,97004.0,0.00022565]
[1734840913376,0.206183,97001.0,97000.0,0.00513717]
[1734840913577,0.6329914,97001.0,97000.0,0.00513717]
[1734840913753,0.7559914,97001.0,97000.0,0.00513717]
[1734840914496,0.75639079,97001.0,97000.0,0.00513717]
[1734840914702,1.10744779,97001.0,97000.0,0.00513717]
[1734840914907,0.406196,96995.0,96994.0,0.0001714]
[1734840915108,0.82932645,96995.0,96994.0,0.00022585]
[1734840916025,0.82932645,96995.0,96994.0,8.5e-07]
[1734840916703,0.83966167,96995.0,96994.0,8.5e-07]
[1734840916908,0.84866167,96995.0,96994.0,8.5e-07]
[1734840917074,1.17971867,96995.0,96994.0,8.5e-07]
[1734840917283,0.60970062,96995.0,96994.0,8.5e-07]
[1734840917488,0.4583654,96995.0,96994.0,8.5e-07]
[1734840917687,0.206198,96994.0,96978.0,0.20623]
[1734840917883,0.1013084,96993.0,96978.0,0.20623]
[1734840918286,0.1013084,96993.0,96983.0,0.206221]
[1734840918485,0.1013084,96993.0,96974.0,0.20624]
[1734840918691,0.009,96995.0,96976.0,0.0754]
[1734840919079,0.009,96995.0,96977.0,0.00103103]
[1734840919420,0.009,96995.0,96991.0,0.206204]
[1734840919603,0.009,96995.0,96991.0,0.457708]
[1734840920066,0.009,96995.0,96992.0,0.206202]
[1734840920228,0.009,96993.0,96992.0,0.206202]
[1734840920430,0.09200954,97000.0,96999.0,0.206187]
[1734840921233,0.20616,97012.0,96999.0,0.206187]
[1734840921408,0.1013084,97011.0,96999.0,0.206187]
[1734840921610,0.1013084,97011.0,96993.0,0.2062]
[1734840921611,0.002,97000.0,96993.0,0.2062]
[1734840921793,0.002,97000.0,96998.0,0.206187]
[1734840922840,0.1013084,97011.0,96998.0,0.206187]
[1734840923048,0.002,97000.0,96999.0,0.206187]
[1734840923245,0.1013084,97011.0,96999.0,0.206187]
[1734840924024,0.1033084,97011.0,96997.0,0.206191]
[1734840924203,0.206164,97010.0,96997.0,0.206191]
[1734840924535,0.1013084,97009.0,97002.0,0.20618]
[1734840924785,0.1013084,97009.0,96997.0,0.206191]
[1734840925110,0.1013084,97009.0,96997.0,0.412382]
[1734840925962,0.1013084,97009.0,96997.0,0.206191]
[1734840927041,0.1033084,97009.0,96997.0,0.206191]
[1734840927467,0.1053084,97009.0,96997.0,0.206191]
[1734840927870,0.10526742,97009.0,96997.0,0.206191]
[1734840928467,0.31143442,97009.0,96993.0,0.206198]
[1734840929022,0.31143442,97009.0,96994.0,0.206198]
[1734840929408,0.30943442,97009.0,96994.0,0.206198]
[1734840929695,0.31143442,97009.0,96994.0,0.206198]
[1734840929904,0.30943442,97009.0,96994.0,0.206198]
[1734840930103,0.31343442,97009.0,96994.0,0.206198]
[1734840930436,0.31043442,97009.0,96994.0,0.206198]
[1734840930626,0.31043442,97009.0,96994.0,0.412396]
[1734840930839,0.31443442,97009.0,96994.0,0.412396]
[1734840932289,0.10826742,97009.0,96999.0,0.206187]
[1734840933116,0.10526742,97009.0,96999.0,0.206187]
[1734840933337,0.10826742,97009.0,96999.0,0.206187]
[1734840933533,0.10426742,97009.0,96999.0,0.206187]
[1734840933733,0.31043342,97009.0,96995.0,0.206196]
[1734840933941,0.31443342,97009.0,96995.0,0.206196]
[1734840934179,0.31143342,97009.0,96995.0,0.206196]
[1734840934315,0.31143342,97009.0,96995.0,0.412392]
[1734840934518,0.30743342,97009.0,96995.0,0.412392]
[1734840935089,0.30743342,97009.0,97000.0,0.206185]
[1734840935090,0.10526742,97009.0,97000.0,0.206185]
[1734840935250,0.004,97009.0,96993.0,0.2062]
[1734840935428,0.007,97009.0,97004.0,0.206175]
[1734840935636,0.007,97009.0,97004.0,0.412351]
[1734840935821,0.004,97009.0,97004.0,0.206175]
[1734840936237,0.007,97009.0,97000.0,0.206184]
[1734840936614,0.003,97009.0,97000.0,0.206184]
[1734840937091,0.15,97014.0,97000.0,0.206184]
[1734840937316,0.20616,97012.0,96998.0,0.206188]
[1734840937452,0.1013084,97011.0,96998.0,0.206188]
[1734840937647,0.0001714,97009.0,96998.0,0.412377]
[1734840938427,0.206183,97001.0,96994.0,8.57e-05]
[1734840938635,0.1013084,97008.0,96994.0,8.57e-05]
[1734840938870,0.206189,96999.0,96994.0,8.57e-05]
[1734840939078,0.206172,97006.0,96994.0,8.57e-05]
[1734840939286,0.1013084,97005.0,96994.0,8.57e-05]
[1734840940136,0.206177,97004.0,96994.0,0.2062817]
[1734840940343,0.1013084,97003.0,96994.0,0.2062817]
[1734840940584,0.0001714,97009.0,96999.0,0.206186]
[1734840940785,0.003,97005.0,97000.0,0.206184]
[1734840941218,0.1014798,97009.0,97000.0,0.206184]
[1734840941422,0.002,97003.0,97000.0,0.206184]
[1734840941778,0.002,97005.0,97000.0,0.412369]
[1734840941996,0.003,97005.0,97000.0,0.412369]
[1734840942203,0.003,97005.0,96994.0,8.57e-05]
[1734840942204,0.003,97005.0,96996.0,0.206194]
[1734840942532,0.001,97005.0,96995.0,0.206196]
[1734840942734,0.206186,97000.0,96994.0,8.57e-05]
[1734840942936,0.1013084,96999.0,96994.0,8.57e-05]
[1734840944452,0.206189,96998.0,96994.0,8.57e-05]
[1734840944688,0.3075004,96997.0,96994.0,8.57e-05]
[1734840945652,0.5166924,96997.0,96994.0,8.57e-05]
[1734840945852,0.356196,96995.0,96994.0,8.57e-05]
[1734840946053,0.4575044,96995.0,96994.0,8.57e-05]
[1734840946708,0.54951394,96995.0,96994.0,8.57e-05]
[1734840947043,0.69711394,96995.0,96994.0,8.57e-05]
[1734840947268,0.78011394,96995.0,96994.0,8.57e-05]
[1734840947468,0.78911394,96995.0,96994.0,8.57e-05]
[1734840947655,0.78011394,96995.0,96994.0,8.57e-05]
[1734840947982,1.27220732,96995.0,96994.0,8.57e-05]
[1734840948319,0.206232,96978.0,96965.0,0.0001714]
[1734840948525,0.3905404,96978.0,96977.0,0.0001401]
[1734840948867,0.5405404,96978.0,96977.0,0.0001401]
[1734840949638,0.5425404,96978.0,96977.0,0.0001401]
[1734840950235,0.88261946,96978.0,96977.0,0.0001401]
[1734840950458,0.88961946,96978.0,96977.0,0.0001401]
[1734840950864,0.88761946,96978.0,96977.0,0.0001401]
[1734840951090,0.89161946,96978.0,96977.0,0.0001401]
[1734840951293,0.55485683,96978.0,96977.0,0.0001401]
[1734840951493,0.56385683,96978.0,96977.0,0.0001401]
[1734840951692,0.55985683,96978.0,96977.0,0.0001401]
[1734840951871,0.56485683,96978.0,96977.0,0.0001401]
[1734840952457,0.55985683,96978.0,96977.0,0.0001401]
[1734840952658,0.56485683,96978.0,96977.0,0.0001401]
[1734840952860,0.55585683,96978.0,96977.0,0.0001401]
[1734840953660,0.56385683,96978.0,96977.0,0.0001401]
[1734840955943,0.55585683,96978.0,96977.0,0.0001401]
[1734840956149,0.55085683,96978.0,96977.0,0.0001401]
[1734840956278,0.55985683,96978.0,96977.0,0.0001401]
[1734840957618,0.56485683,96978.0,96977.0,0.0001401]
[1734840958023,0.1,96973.0,96969.0,3e-07]
[1734840958196,0.7602574,96970.0,96969.0,3e-07]
[1734840958605,0.78722423,96970.0,96969.0,3e-07]
[1734840959940,0.79622423,96970.0,96969.0,3e-07]
[1734840960136,1.12608165,96970.0,96969.0,3e-07]
[1734840960339,1.12608165,96970.0,96967.0,0.0001317]
[1734840960340,0.2,96968.0,96967.0,0.0001317]
[1734840960557,0.57674609,96968.0,96967.0,0.0001317]
[1734840961364,0.57674609,96968.0,96963.0,5e-07]
[1734840961365,0.4527,96964.0,96963.0,5e-07]
[1734840961564,0.62844063,96964.0,96963.0,5e-07]
[1734840961830,0.535987,96952.0,96951.0,0.0151712]
[1734840962029,0.6372954,96952.0,96951.0,0.0152257]
[1734840963048,0.6432954,96952.0,96951.0,0.0152257]
[1734840963783,0.206315,96939.0,96938.0,8.57e-05]
[1734840963985,0.3076234,96939.0,96938.0,0.00062971]
[1734840964190,0.4576234,96939.0,96938.0,0.00062971]
[1734840964813,0.4586234,96939.0,96938.0,0.00062971]
[1734840965216,0.5842234,96939.0,96938.0,0.00062971]
[1734840965581,0.5832234,96939.0,96938.0,0.00062971]
[1734840965751,0.60721893,96939.0,96938.0,0.00062971]
[1734840966207,0.62341379,96939.0,96938.0,0.00062971]
[1734840966406,0.61741379,96939.0,96938.0,0.00062971]
[1734840966831,0.62641379,96939.0,96938.0,0.00062971]
[1734840967048,0.62341379,96939.0,96938.0,0.00062971]
[1734840967420,0.62941379,96939.0,96938.0,0.00062971]
[1734840967625,0.65794602,96939.0,96938.0,0.00062971]
[1734840968362,0.85794602,96939.0,96938.0,0.00062971]
[1734840968567,0.8815734,96939.0,96938.0,0.00062971]
[1734840969592,0.8725734,96939.0,96938.0,0.00062971]
[1734840969794,0.8815734,96939.0,96938.0,0.00062971]
[1734840970202,0.8755734,96939.0,96938.0,0.00062971]
[1734840970396,0.8755734,96939.0,96938.0,7.1e-07]
[1734840970624,0.2,96930.0,96929.0,0.0148138]
[1734840970796,0.2,96930.0,96911.0,0.0001]
[1734840970797,0.25,96923.0,96911.0,0.0001]
[1734840971012,0.6603804,96912.0,96911.0,0.00022386]
[1734840972246,0.1063084,96912.0,96911.0,0.00022386]
[1734840972443,0.005,96912.0,96911.0,0.00022386]
[1734840973045,0.013,96912.0,96911.0,0.00022386]
[1734840973365,0.206365,96916.0,96911.0,0.00022386]
[1734840973572,0.008,96912.0,96911.0,0.00022386]
[1734840973768,0.013,96912.0,96911.0,0.00022386]
[1734840973959,0.005,96912.0,96911.0,0.00022386]
[1734840974311,0.206365,96916.0,96911.0,0.00022386]
[1734840974653,0.210365,96916.0,96911.0,0.00022386]
[1734840975088,0.206365,96916.0,96911.0,0.00022386]
[1734840975287,0.004,96912.0,96911.0,0.00022386]
[1734840975662,0.003,96912.0,96911.0,0.00022386]
[1734840976406,0.007,96912.0,96911.0,0.00022386]
[1734840976604,0.004,96912.0,96911.0,0.00022386]
[1734840976827,0.01043921,96925.0,96918.0,0.206359]
[1734840977030,0.1013084,96924.0,96912.0,0.206372]
[1734840977456,0.1013084,96924.0,96911.0,0.00022386]
[1734840977615,0.001,96912.0,96911.0,0.00022386]
[1734840978018,0.206355,96920.0,96911.0,0.00022386]
[1734840978887,0.08588999,96921.0,96911.0,0.00022386]
[1734840979091,0.001,96912.0,96911.0,0.00022386]
[1734840979617,0.59990639,96921.0,96911.0,0.00022386]
[1734840979826,0.003,96920.0,96911.0,0.00022386]
[1734840980346,0.20636,96918.0,96911.0,0.00022386]
[1734840980696,0.1013084,96918.0,96911.0,0.00022386]
[1734840981477,0.1033084,96918.0,96911.0,0.00022386]
[1734840981677,0.3076704,96917.0,96911.0,0.00022386]
[1734840981883,0.5140324,96917.0,96911.0,0.00022386]
[1734840982880,0.206372,96912.0,96911.0,0.00022386]
[1734840983206,0.3076804,96912.0,96911.0,0.00022386]
[1734840984666,0.3076804,96912.0,96911.0,0.00030966]
[1734840984897,0.1033084,96912.0,96911.0,0.00030966]
[1734840985111,0.002,96912.0,96911.0,0.00030966]
[1734840985637,0.004,96912.0,96911.0,0.00030966]
[1734840985873,0.002,96912.0,96911.0,0.00030966]
[1734840986286,0.004,96912.0,96911.0,0.00030966]
[1734840986490,0.0001716,96929.0,96928.0,0.206338]
[1734840986820,0.0001716,96929.0,96919.0,0.0461]
[1734840987352,0.0001716,96929.0,96920.0,0.206355]
[1734840987759,0.0021716,96929.0,96920.0,0.206355]
[1734840988183,0.0001716,96929.0,96920.0,0.206355]
[1734840988532,0.0021716,96929.0,96920.0,0.206355]
[1734840988734,0.0021716,96929.0,96920.0,0.41271]
[1734840988951,0.0051716,96929.0,96920.0,0.41271]
[1734840989153,0.0021716,96929.0,96920.0,0.41271]
[1734840989572,0.0001716,96929.0,96920.0,0.41271]
[1734840989774,0.3076464,96928.0,96911.0,0.28888366]
[1734840990139,0.206355,96920.0,96911.0,0.00030966]
[1734840990310,0.1013084,96919.0,96911.0,0.00030966]
[1734840991305,0.1013084,96919.0,96911.0,0.20668366]
[1734840992340,0.1013084,96919.0,96911.0,0.00030966]
[1734840992741,0.1043084,96919.0,96911.0,0.00030966]
[1734840992934,0.3106674,96919.0,96911.0,0.00030966]
[1734840993199,0.3136674,96919.0,96911.0,0.00030966]
[1734840993527,0.1013084,96919.0,96911.0,0.00030966]
[1734840993750,0.1043084,96919.0,96911.0,0.00030966]
[1734840994140,0.1063084,96919.0,96911.0,0.00030966]
[1734840994994,0.1043084,96919.0,96911.0,0.00030966]
[1734840995515,0.1013084,96919.0,96911.0,0.00030966]
[1734840995857,0.1053084,96919.0,96911.0,0.00030966]
[1734840996054,0.1043084,96919.0,96911.0,0.00030966]
[1734840996477,0.1073084,96919.0,96911.0,0.00030966]
[1734840996691,0.1043084,96919.0,96911.0,0.00030966]
[1734840996892,0.1043084,96919.0,96911.0,0.41305766]
[1734840997093,0.1033084,96919.0,96911.0,0.41305766]
[1734840997294,0.1033084,96919.0,96911.0,0.20668366]
[1734840997501,0.1053084,96919.0,96911.0,0.20668366]
[1734840997852,0.1083084,96919.0,96911.0,0.20668366]
[1734840998316,0.1083084,96919.0,96911.0,0.00030966]
[1734840998885,0.41272,96918.0,96911.0,0.00030966]
[1734840999070,0.5140284,96918.0,96911.0,0.00030966]
[1734840999275,0.3076684,96918.0,96911.0,0.00030966]
[1734840999692,0.002,96919.0,96911.0,0.00030966]
[1734840999693,0.1013084,96917.0,96911.0,0.00030966]
[1734841000552,0.206368,96914.0,96911.0,0.00030966]
[1734841000727,0.206372,96912.0,96911.0,0.00030966]
[1734841000927,0.3076804,96912.0,96911.0,0.00030966]
[1734841002629,0.3116804,96912.0,96911.0,0.00030966]
[1734841002857,0.3076804,96912.0,96911.0,0.00030966]
[1734841003254,0.3186804,96912.0,96911.0,0.00030966]
[1734841004923,0.35101651,96912.0,96911.0,0.00030966]
[1734841006518,0.09215871,96916.0,96911.0,0.00030966]
[1734841006687,0.004,96912.0,96911.0,0.00030966]
[1734841007208,0.01,96912.0,96911.0,0.00030966]
[1734841007390,0.004,96912.0,96911.0,0.00030966]
[1734841008454,0.09215871,96920.0,96912.0,0.412744]
[1734841008962,0.13823807,96923.0,96912.0,0.412744]
[1734841008963,0.09215871,96923.0,96912.0,0.412744]
[1734841009164,0.09215871,96923.0,96913.0,0.41274]
[1734841009300,0.008,96916.0,96913.0,0.41274]
[1734841009499,0.09215871,96923.0,96913.0,0.41274]
[1734841009940,0.002,96920.0,96913.0,0.41274]
[1734841010261,0.09215871,96923.0,96913.0,0.41274]
[1734841010470,0.0105029,96924.0,96913.0,0.41274]
[1734841010617,0.1118113,96924.0,96913.0,0.41274]
[1734841010818,0.003,96923.0,96913.0,0.41274]
[1734841011047,0.006,96923.0,96913.0,0.41274]
[1734841011216,0.006,96923.0,96913.0,0.20637]
[1734841011601,0.006,96923.0,96913.0,0.41274]
[1734841012103,0.003,96923.0,96913.0,0.41274]
[1734841012303,0.1013084,96924.0,96913.0,0.41274]
[1734841012546,0.1063084,96924.0,96913.0,0.41274]
[1734841012959,0.1013084,96924.0,96913.0,0.41274]
[1734841013163,0.005,96923.0,96917.0,0.20636]
[1734841013535,0.002,96923.0,96917.0,0.20636]
[1734841013711,0.1043084,96924.0,96917.0,0.20636]
[1734841014113,0.1033084,96924.0,96917.0,0.20636]
[1734841014720,0.19546711,96924.0,96917.0,0.20636]
[1734841015362,0.002,96923.0,96917.0,0.20636]
[1734841015574,0.002,96923.0,96921.0,0.206351]
[1734841015766,0.09415871,96924.0,96921.0,0.412704]
[1734841016116,0.09715871,96924.0,96921.0,0.412704]
[1734841016318,0.09215871,96924.0,96921.0,0.412704]
[1734841016486,0.002,96923.0,96921.0,0.412704]
[1734841016687,0.004,96923.0,96921.0,0.412704]
[1734841016871,0.002,96923.0,96921.0,0.412704]
[1734841017240,0.09415871,96924.0,96921.0,0.412704]
[1734841017370,0.09615871,96924.0,96921.0,0.412704]
[1734841017779,0.004,96924.0,96921.0,0.412704]
[1734841017978,0.004,96924.0,96923.0,0.206349]
[1734841018404,0.002,96924.0,96923.0,0.206349]
[1734841018761,0.002,96924.0,96923.0,0.251349]
[1734841018960,0.0001716,96929.0,96925.0,0.206343]
[1734841019202,0.0001716,96929.0,96927.0,0.20634]
[1734841019407,0.0001716,96929.0,96928.0,0.00103153]
[1734841021082,0.0001716,96929.0,96928.0,0.00203153]
[1734841021614,0.0011716,96929.0,96928.0,0.00203153]
[1734841023031,0.0011716,96929.0,96928.0,0.07763153]
[1734841026661,0.0011716,96929.0,96928.0,0.00203153]
[1734841026862,0.0011716,96929.0,96928.0,0.0020315]
[1734841030907,0.0011716,96929.0,96928.0,0.0021173]
[1734841032155,0.0011716,96929.0,96928.0,0.0010858]
[1734841033856,0.0011716,96929.0,96928.0,0.00111739]
[1734841034058,0.0011716,96929.0,96928.0,8.58e-05]
[1734841034880,0.0001716,96929.0,96928.0,8.58e-05]
[1734841036040,0.0011716,96929.0,96928.0,8.58e-05]
[1734841037539,0.0001716,96929.0,96928.0,8.58e-05]
[1734841040282,0.0799716,96929.0,96928.0,8.58e-05]
[1734841041770,0.0809716,96929.0,96928.0,8.58e-05]
[1734841049132,0.18228,96929.0,96928.0,8.58e-05]
[1734841051955,0.37858,96929.0,96928.0,8.58e-05]
[1734841052673,0.37758,96929.0,96928.0,8.58e-05]
[1734841053031,0.18128,96929.0,96928.0,8.58e-05]
[1734841053239,0.27343871,96929.0,96928.0,8.58e-05]
[1734841053464,0.27743871,96929.0,96928.0,8.58e-05]
[1734841053621,0.17613031,96929.0,96928.0,8.58e-05]
[1734841053863,0.09633031,96929.0,96928.0,8.58e-05]
[1734841054071,0.09433031,96929.0,96928.0,8.58e-05]
[1734841054284,0.09833031,96929.0,96928.0,8.58e-05]
[1734841054485,0.09433031,96929.0,96928.0,8.58e-05]
[1734841054703,0.0021716,96929.0,96928.0,8.58e-05]
[1734841054925,0.0001716,96929.0,96928.0,8.58e-05]
[1734841056786,0.2065076,96929.0,96928.0,8.58e-05]
[1734841056972,0.2095076,96929.0,96928.0,8.58e-05]
[1734841057133,0.0001716,96929.0,96928.0,8.58e-05]
[1734841057683,0.0021716,96929.0,96928.0,8.58e-05]
[1734841058097,0.0041716,96929.0,96928.0,8.58e-05]
[1734841058497,0.0021716,96929.0,96928.0,8.58e-05]
[1734841058908,0.0031716,96929.0,96928.0,8.58e-05]
[1734841059420,0.2095076,96929.0,96928.0,8.58e-05]
[1734841059553,0.2085076,96929.0,96928.0,8.58e-05]
[1734841059759,0.2065076,96929.0,96928.0,8.58e-05]
[1734841059984,0.2085076,96929.0,96928.0,8.58e-05]
[1734841060193,0.2115076,96929.0,96928.0,8.58e-05]
[1734841060520,0.2085076,96929.0,96928.0,8.58e-05]
[1734841060676,0.0051716,96929.0,96928.0,8.58e-05]
[1734841061331,0.0031716,96929.0,96928.0,8.58e-05]
[1734841061507,0.0051716,96929.0,96928.0,8.58e-05]
[1734841063070,0.0031716,96929.0,96928.0,8.58e-05]
[1734841063604,0.0001716,96929.0,96928.0,8.58e-05]
[1734841063774,0.0021716,96929.0,96928.0,8.58e-05]
[1734841064773,0.0031716,96929.0,96928.0,8.58e-05]
[1734841065170,0.0011716,96929.0,96928.0,8.58e-05]
[1734841065373,0.0021716,96929.0,96928.0,8.58e-05]
[1734841065893,0.0011716,96929.0,96928.0,8.58e-05]